Cogmind - Beta 14 @@@ ROGUE MODE // 2024.11.23 @ 19:32:29 Player: Klelik Result: Smashed by cave-in Performance ------------- Evolutions (0) 0 Regions Visited (2) 400 Robots Destroyed (16) 80 Value Destroyed (389) 389 Prototype IDs (0) 0 Alien Tech Used (0) 0 Bonus (0) 0 TOTAL SCORE: 869 Bonus ------- None Cogmind --------- Core Integrity 0/250 Matter 186/300 Energy 64/100 System Corruption 0% Temperature Cool (0) Movement Walking (120) Location -10/Subcaves Parts ------- > --- POWER (1) -------- (None) > --- PROPULSION (2) --- Aluminum Leg Aluminum Leg > --- UTILITY (2) ------ Medium Storage Unit Core Shielding > --- WEAPON (2) ------- EM Pulse Gun Small Laser > --- INVENTORY (10) --- Aluminum Leg Small Storage Unit Large Matter Pod (150) Transport Network Coupler Scrap Shield Fragment (28) Scrap Shield Fragment (24) Peak State ------------ > --- POWER ------------ Ion Engine > --- PROPULSION ------- Aluminum Leg Aluminum Leg > --- UTILITY ---------- Medium Storage Unit Core Shielding > --- WEAPON ----------- EM Pulse Gun EM Pulse Gun > --- INVENTORY -------- Light Ion Engine Aluminum Leg Wheel Wheel Small Storage Unit Large Matter Pod Transport Network Coupler Small Laser Light Assault Rifle Grenade Launcher [Rating: 8] Favorites ----------- Power Ion Engine Engine Ion Engine Propulsion Aluminum Leg Leg Aluminum Leg Utility Medium Storage Unit Storage Medium Storage Unit Protection Core Shielding Weapon EM Pulse Gun Energy Gun EM Pulse Gun Ballistic Gun Light Assault Rifle Launcher Grenade Launcher Build | -11 -10 -10 ------- Run | Yrd Mat Sub Slots Evolved . | . . . Power . | . . . Propulsion . | . . . Utility . | . . . Weapon . | . . . Parts Attached 18 | 6 4 8 Power 3 | 1 . 2 Engine 3 | 1 . 2 Core . | . . . Reactor . | . . . Propulsion 4 | 2 . 2 Treads . | . . . Leg 4 | 2 . 2 Wheel . | . . . Hover . | . . . Flight . | . . . Utility 3 | 1 2 . Device . | . . . Storage 2 | 1 1 . Processor . | . . . Hackware . | . . . Protection 1 | . 1 . Artifact . | . . . Weapon 8 | 2 2 4 Energy Gun 5 | 1 2 2 Energy Cannon . | . . . Ballistic Gun 2 | 1 . 1 Ballistic Cannon . | . . . Launcher 1 | . . 1 Special Weapon . | . . . Impact Weapon . | . . . Slashing Weapon . | . . . Piercing Weapon . | . . . Special Melee Weapon . | . . . Unidentified Prototypes . | . . . Parts Lost 5 | . . 5 Power 1 | . . 1 Propulsion 2 | . . 2 Utility . | . . . Weapon 2 | . . 2 Highest Loss Streak 4 | . . 4 To Critical Strikes . | . . . Average Slot Usage (%) 93 | . 91 96 Engine 13 | . 14 12 Leg 27 | . 28 27 Storage 14 | . 14 14 Protection 8 | . 5 14 Energy Gun 17 | . 23 8 Ballistic Gun 6 | . 4 9 Launcher 4 | . . 10 Peak Build Rating 8 | 6 8 8 Average Rating 7 | 4 6 7 On Entrance 4 | . 6 8 Naked Turns . | . . . Heaviest Build 21 | 13 20 21 Greatest Support 20 | 20 20 20 Greatest Overweight (x) 4 | . . 4 Average Overweight (x) . | . . . Largest Inventory Capacity 10 | 8 10 10 Average Capacity 9 | 6 9 10 Most Carried 10 | 6 10 10 Average Carried 8 | 4 8 9 Final Capacity 10 | 8 10 10 Final Carried 10 | 6 10 6 Class Distribution -------------------- 100% | Mutant Dominant Class ---------------- Mutant | -10/Materials Mutant | -10/Subcaves Resources | -11 -10 -10 ----------- Run | Yrd Mat Sub Matter Collected 546 | 241 188 117 Remotely . | . . . Salvage Created 437 | . 299 138 Parts 33 | . 17 16 Haulers Intercepted 1 | . 1 . Recyclers Shooed . | . . . Parts Field Recycled . | . . . Retrieved Matter . | . . . Parts Self-Destructed 10 | . . 10 Prevented . | . . . Kills | -11 -10 -10 ------- Run | Yrd Mat Sub Combat Hostiles Destroyed 14 | . 4 10 Guns 8 | . 4 4 AOE 6 | . . 6 Classes Destroyed 5 | . 3 2 Builder 1 | . 1 . Hauler 1 | . 1 . Swarmer 6 | . . 6 Grunt 4 | . 4 . Subdweller 4 | . . 4 Best Kill Streak 4 | . 2 4 Combat Bots Only 4 | . 2 4 Max Kills in Single Turn 2 | . 1 2 Gunslinging . | . . . Exploded 2 | . . 2 Melee . | . . . Uniques/NPCs Destroyed . | . . . Combat | -11 -10 -10 -------- Run | Yrd Mat Sub Hostile Shots Fired 158 | . 28 130 Missed 59 | . 6 53 Damage Taken 980 | . 284 696 Core 293 | . 70 223 Absorbed by Shields . | . . . Redirected to Shielding 45 | . 2 43 Core Remaining (%) 100 | 100 . . Volleys Fired 62 | . 18 44 Largest 2 | . 2 2 Hottest 80 | . 80 80 Shots Fired 106 | . 36 70 Gun 94 | . 36 58 Cannon . | . . . Launcher 12 | . . 12 Special . | . . . Kinetic 35 | . 9 26 Thermal 19 | . . 19 Explosive 12 | . . 12 Electromagnetic 40 | . 27 13 Robot Hit Streak 15 | . 15 10 Robot Miss Streak 5 | . 2 5 Penetration Max . | . . . Secondary Targets 1 | . 1 . Max Gunslinging Chain 1 | . 1 . Shots Hit Robots 66 | . 28 38 Core Hits 33 | . 13 20 Critical Kills . | . . . Critical Parts Destroyed . | . . . Critical Strikes 1 | . . 1 Corrupt 1 | . . 1 Melee Attacks . | . . . Impact . | . . . Slashing . | . . . Piercing . | . . . Sneak Attacks . | . . . Combat Hostiles . | . . . Follow-up Attacks . | . . . Damage Inflicted 1288 | . 355 933 Guns 674 | . 355 319 Cannons . | . . . Explosions 614 | . . 614 Melee . | . . . Ramming . | . . . Kinetic 183 | . 56 127 Thermal 90 | . . 90 Explosive 614 | . . 614 Electromagnetic 401 | . 299 102 Impact . | . . . Slashing . | . . . Piercing . | . . . Highest Corruption . | . . . Average Corruption . | . . . Corruption Purged . | . . . Corruption Blocked . | . . . Overload Shots . | . . . Overflow Damage 28 | . . 28 Projectiles . | . . . Explosions 28 | . . 28 Melee . | . . . Knockbacks . | . . . Impact . | . . . Kinetic . | . . . Secondary . | . . . Self-Inflicted Damage 40 | . . 40 Shots 1 | . . 1 Rammed . | . . . Targets Rammed . | . . . Kicked . | . . . Crushed . | . . . Highest Temperature 162 | . 162 2 Average Temperature 60 | . 64 2 Received Heat Transfer 555 | . 207 348 Siege Activations . | . . . Robots Corrupted . | . . . Combat Hostiles . | . . . Parts Fried . | . . . Impact Corruptions . | . . . Robots Melted . | . . . Combat Hostiles . | . . . Parts Melted . | . . . Heat Transferred 200 | . . 200 Parts Sabotaged . | . . . Parts Stolen . | . . . Parts Stripped . | . . . Power Chain Reactions . | . . . Alert | -11 -10 -10 ------- Run | Yrd Mat Sub Peak Influence 86 | . 86 . Initial . | . . . Average 42 | . 46 . Maximum Alert Level . | . . . Low Security (%) 100 | 100 100 . Level 1 . | . . . Level 2 . | . . . Level 3 . | . . . Level 4 . | . . . Level 5 . | . . . High Security . | . . . Max Security . | . . . Squads Dispatched . | . . . Investigation . | . . . Extermination . | . . . Reinforcement . | . . . Assault . | . . . Garrison . | . . . Intercept . | . . . Searches Triggered . | . . . Construction Impeded . | . . . Haulers Reinforced . | . . . Active Scanning Responses . | . . . Cargo Convoy Interrupts . | . . . Stealth | -11 -10 -10 --------- Run | Yrd Mat Sub Distress Signals . | . . . Communications Jammed . | . . . Distress Signals . | . . . Times Spotted 32 | . 8 24 Peak Tracking Total 6 | . 2 6 Tactical Retreats 4 | . 1 3 Traps | -11 -10 -10 ------- Run | Yrd Mat Sub Traps Triggered . | . . . Indirectly . | . . . Trap Hack Attempts . | . . . Triggered . | . . . Disarmed . | . . . Reprogrammed . | . . . Reused . | . . . Traps Extracted . | . . . Installed . | . . . Triggered . | . . . Machines | -11 -10 -10 ---------- Run | Yrd Mat Sub Machines Disabled . | . . . Max in Single Turn . | . . . Machines Repaired . | . . . Machines Dismantled . | . . . Machines Sabotaged . | . . . Overloaded Fab Kills . | . . . Hacking | -11 -10 -10 --------- Run | Yrd Mat Sub Machines Accessed 2 | . 2 . Terminals 2 | . 2 . Fabricators . | . . . Repair Stations . | . . . Recycling Units . | . . . Scanalyzers . | . . . Garrison Access . | . . . Total Hacks 5 | . 5 . Successful 3 | . 3 . Failed 2 | . 2 . Catastrophic . | . . . Database Lockouts . | . . . Manual . | . . . Terminals 5 | . 5 . Fabricators . | . . . Repair Stations . | . . . Recycling Units . | . . . Scanalyzers . | . . . Garrison Access . | . . . Terminal Hacks 3 | . 3 . Record 1 | . 1 . Terminal Index 1 | . 1 . Locate Traps 1 | . 1 . Fabricator Hacks . | . . . Repair Station Hacks . | . . . Recycling Unit Hacks . | . . . Scanalyzer . | . . . Garrison Access Hacks . | . . . Unauthorized Hacks . | . . . Terminals . | . . . Fabricators . | . . . Repair Stations . | . . . Recycling Units . | . . . Scanalyzers . | . . . Garrison Access . | . . . Data Cores Recovered . | . . . Used . | . . . Hacking Detections 2 | . 2 . Full Trace Events . | . . . Feedback Events . | . . . Feedback Blocked . | . . . Robot Schematics Acquired . | . . . Robots Built . | . . . Authchips . | . . . Time . | . . . Total Robot Build Rating . | . . . Part Schematics Acquired . | . . . Parts Built . | . . . Authchips . | . . . Time . | . . . Total Part Build Rating . | . . . Parts Repaired . | . . . Time . | . . . Parts Recycled . | . . . Recycled Matter . | . . . Retrieved Matter . | . . . Retrieved Components . | . . . Parts Scanalyzed . | . . . Part Schematics Acquired . | . . . Parts Damaged . | . . . Bothacking | -11 -10 -10 ------------ Run | Yrd Mat Sub Used RIF Installer . | . . . Robots Hacked . | . . . Non-combat . | . . . Combat . | . . . Robot Hacks Applied . | . . . Relay Couplers Released . | . . . Fabnet Peak Effective % . | . . . Robots Rewired . | . . . Allies Hacked . | . . . Hacks Repelled . | . . . Allies | -11 -10 -10 -------- Run | Yrd Mat Sub Total Allies . | . . . Largest Group . | . . . Highest-Rated Group . | . . . Highest-Rated Ally . | . . . Total Orders . | . . . Ally Attacks . | . . . Total Damage . | . . . Kills . | . . . Allies Corrupted . | . . . Allies Melted . | . . . Intel | -11 -10 -10 ------- Run | Yrd Mat Sub Robot Analysis Total . | . . . Derelict Logs Recovered . | . . . Drone Launches . | . . . Drone Recoveries . | . . . Exploration | -11 -10 -10 ------------- Run | Yrd Mat Sub Turns Passed 1135 | 65 650 420 Spaces Moved 674 | 45 407 222 Core 7 | 4 . 3 Treads . | . . . Legs 667 | 41 407 219 Wheels . | . . . Hover . | . . . Flight . | . . . Fastest Speed 50 | 50 120 120 Average Speed 121 | 113 120 124 Slowest Speed 250 | 120 120 250 Overloaded Moves . | . . . Propulsion Burnouts . | . . . Robots Hopped . | . . . Cave-ins Triggered 1 | . . 1 Exploration Rate (%) 24 | 3 55 16 Regions Visited 2 Branch Regions 1 Pre-discovered Areas . | . . . Known Exits Taken . | . . . Unknown Exits Taken 2 | 1 1 . Scrap Searched . | . . . Spaces Dug . | . . . Terrain Destroyed 74 | . . 74 Melee . | . . . Projectile . | . . . AOE 74 | . . 74 Terrain Rammed . | . . . Walls Destroyed . | . . . Machines Disabled . | . . . Actions | -11 -10 -10 --------- Run | Yrd Mat Sub Total 891 | 56 535 300 Wait 115 | . 94 21 Move 672 | 44 406 222 Hop . | . . . Pick Up 15 | 6 7 2 Fast Attach 8 | 6 2 . Attach 4 | . . 4 Detach 1 | . 1 . Swap 6 | . 2 4 Drop 8 | . 5 3 Fire 62 | . 18 44 Melee . | . . . Ram . | . . . Kick . | . . . Crush . | . . . Escape Stasis . | . . . Rewire . | . . . Trap . | . . . Miscellaneous . | . . . Route ------- -11/Scrapyard -10/Materials (discovered 2 exits: [*Min] / [*Sub]) -10/Subcaves (discovered 1 exit: [*Rec]) History --------- Turn | Location | Event 4 | -11/Scrapyard | Discovered new exit (range 16) 66 | -11/Scrapyard | Entered Materials 129 | -10/Materials | Discovered new exit (range 5) 301 | -10/Materials | Build established: Mutant 698 | -10/Materials | Discovered new exit (range 5) 716 | -10/Materials | Entered Subcaves 1047 | -10/Subcaves | Core integrity fell below 50% 1057 | -10/Subcaves | Discovered new exit (range 15) 1087 | -10/Subcaves | Core integrity fell below 20% 1137 | -10/Subcaves | Crushed by falling debris 1137 | -10/Subcaves | Smashed by cave-in Last Messages --------------- 01029_ S-10 Pest destroyed. 01029_ Destroyed Flight Unit. 01029_ S-10 Pest destroyed. 01039_ Grenade Launcher destroyed. 01041_ S-10 Pest destroyed. 01048_ Lgt. Assault Rifle fries itself beyond repair. 01048_ The unstable cave ceiling collapses. 01052_ Flight Unit fries itself beyond repair. 01057_ EXIT=FOUND 01062_ The unstable cave ceiling collapses. 01072_ Aluminum Leg destroyed. 01080_ The unstable cave ceiling collapses. 01080_ Destroyed Autobeam. 01084_ Aluminum Leg destroyed. 01086_ Lgt. Ion Engine destroyed. 01107_ Lgt. Assault Rifle destroyed. 01137_ The unstable cave ceiling collapses. 01137_ Crushed by falling debris. [Achievement: Unlikely Earthworm] Map ----- +----------------------------------------------------+ | ???????????????????????# #??????? | | ????????????????????????# ##?????? | | ???????????????????????## #????## | | ?????????????????????### ## #??### | | ????????????????????# #### #?## | | ???????????????????? #??#### | | ???????????????????? ## #???# | | ???????????????????? ### ####??## # | | ?????????????????????? ?### # #### | | ?????????????????????? ##??# ## ##### # | | ??????????????????????? ?????# # ### | | ???????????????????????? ??????## ! # # ## # | | ??????????????????????????????## = # | | ??????????????????????????????# * #### | | ??????????????????????????????## # ##??## | | ???????????????????????????????## ##????# | | ????????????????????????????##??# #?????# ## | | ???????????????????????#####<###### " #?????####? | | ????????????????????????"""" """"## ""##?????????? | | ???????????????????????#" " " "# """#??????????? | | ????????????????????????" "# """#??????????? | | ????????????????????????? # """###????##### | | ????????????????????????? # " ""#????# # | | ?????????????????????????? "# "????## | | ????????????????????????### % #?# ??#### | | ????????????????????????#@ ""#? #?## ## ## | | ????????????????????????# ""#?? ###""" | | ????????????????????????# # "###### " # "" | | ???????????????????????## ### # ""## "" # | | ?????????????# ??????# # " "## ## | | ???????????????# ### #?# " ##? | | ???????????????# "### "##?? | | ???????????????# ## "" "#??? | | ??????????????# #### #??? | | ??????????????# ### #??? | | ??????????????# ## ###??? | | ?????????????# ### ### #????? | | ?????????????? ????# ### #?## ##???? | | ??????????????????? #?## ##??## ##??? | | ?????????????????? ##???###????# #??? | | ???????????????? ##????????????#### #??? | | ??????????????? ????????????????## #??? | | ???????????????? ????????######### #??? | | ???????????????? ???????## ## ##??? | | ?????????????????? ????????# ##???? | | ???????????????????? ????????# ##????? | | ??????????????????????? ????????### ### ###?????? | | ??????????????????????????????????####?###???????? | | ?????????????????????????????????????????????????? | | ?????????????????????????????????????????????????? | +----------------------------------------------------+ Best States ------------- Heat Dissipation 25 Energy Generation 10 Energy Capacity 250 Matter Stores 300 Matter Capacity 300 Sight Range 16 Terrain Scan Density 10 Core Shielding 20 Evasion (%) 55 Item Schematics ----------------- None Robot Schematics ------------------ None Fabricated ------------ Nothing Alien Tech Used ----------------- None Achievements -------------- Unlikely Earthworm Challenges ------------ None Game ------ Seed Sam Manual? 1 Play Time 00:16:35 Cumulative 24.5 hours Start 2024.11.23 @ 19:17:12 End 2024.11.23 @ 19:32:29 Sessions 1 Manual Loads 0 Difficulty Rogue Special Mode None Game No. 17 Rogue 12 Adventurer 5 Explorer 0 Win Type - Total 0 Types 0/0/0/0/0/0/0/0/0 Lore% 5 Gallery% 25 Achievement% 23 Wizard Run 0 Options --------- Layout 2 ASCII 0 Keyboard 1 Movement Numpad Keybinds 0 Fullscreen 1 Font 24/Smallcaps Map View 50x44 Zoom Use 0% Tactical HUD 1 Map Filters NONE Filters NONE Steam 1 RUN: 5c301ce2-c9a4-4869-b8dc-c42ba3a651e3